bitfinex-derivatives/quotes_BNBF0:USTF0_20260114
["timestamp","ask_amount","ask_price","bid_price","bid_amount"]
[1768425608415,1.381,945.58,944.06,1.58783522]
[1768425609418,1.381,945.58,944.05,1.58783522]
[1768425612421,1.381,945.58,944.04,1.58783522]
[1768425616522,1.381,945.58,944.03,1.58783522]
[1768425621220,1.381,945.58,944.02,1.58783522]
[1768425632127,1.381,945.58,944.03,1.58783522]
[1768425636431,1.381,945.58,944.04,1.58783522]
[1768425640129,1.381,945.58,944.05,1.58783522]
[1768425642136,1.381,945.58,944.06,1.58783522]
[1768425644338,1.381,945.58,944.07,1.58783522]
[1768425646536,1.381,945.58,944.08,1.58783522]
[1768425647641,1.381,945.58,944.09,1.58783522]
[1768425648341,1.381,945.58,944.11,1.58783522]
[1768425651339,1.381,945.58,944.12,1.58783522]
[1768425653438,1.381,945.58,944.13,1.58783522]
[1768425658341,1.381,945.58,944.14,1.58783522]
[1768425659648,0.18415475,945.6,944.14,1.58783522]
[1768425662748,2.151,945.59,944.14,1.58783522]
[1768425664449,6.60380953,945.59,944.14,1.58783522]
[1768425665046,6.60380953,945.59,944.16,1.58783522]
[1768425666350,6.60380953,945.59,944.22,1.58783522]
[1768425666548,6.60380953,945.59,944.3,1.58783522]
[1768425667351,6.60380953,945.59,944.28,1.58783522]
[1768425668252,6.60380953,945.59,944.27,1.58783522]
[1768425668451,2.151,945.59,944.27,1.58783522]
[1768425668952,2.151,945.59,944.34,1.58783522]
[1768425669347,2.151,945.59,944.33,1.58783522]
[1768425670453,2.151,945.59,944.31,1.58783522]
[1768425671249,2.151,945.59,944.3,1.58783522]
[1768425672249,2.151,945.59,944.29,1.58783522]
[1768425673253,2.151,945.59,944.28,1.58783522]
[1768425675252,2.151,945.59,944.27,1.58783522]
[1768425676453,2.151,945.59,944.26,1.58783522]
[1768425678357,2.151,945.59,944.25,1.58783522]
[1768425678752,2.151,945.59,944.26,1.58783522]
[1768425679153,2.151,945.59,944.25,1.58783522]
[1768425682360,2.151,945.59,943.56,2.63765256]
[1768425682361,2.151,945.59,944.24,1.58783522]
[1768425683767,0.18408072,945.75,944.24,1.58783522]
[1768425694272,0.18408072,945.75,944.25,1.58783522]
[1768425698373,0.18408072,945.75,944.26,1.58783522]
[1768425700379,0.18408072,945.75,944.27,1.58783522]
[1768425702377,0.18408072,945.75,944.28,1.58783522]
[1768425704386,0.18408072,945.75,944.29,1.58783522]
[1768425706386,0.18408072,945.75,944.3,1.58783522]
[1768425707386,0.18408072,945.75,944.31,1.58783522]
[1768425707887,0.18408072,945.75,944.28,1.58783522]
[1768425708285,0.18408072,945.75,944.29,1.58783522]
[1768425709185,0.18408072,945.75,944.3,1.58783522]
[1768425710388,0.18408072,945.75,944.32,1.58783522]
[1768425710588,0.18408072,945.75,944.3,1.58783522]
[1768425711290,0.18408072,945.75,944.33,1.58783522]
[1768425711790,0.18408072,945.75,944.31,1.58783522]
[1768425713191,0.18408072,945.75,944.32,1.58783522]
[1768425714092,0.18408072,945.75,944.24,1.58783522]
[1768425714295,0.18408072,945.75,944.23,1.58783522]
[1768425715391,0.18408072,945.75,944.28,1.58783522]
[1768425717494,0.18408072,945.75,943.6,2.63765256]
[1768425717495,0.18408072,945.75,944.29,1.58783522]
[1768425733511,0.18408072,945.75,944.31,1.58783522]
[1768425733908,0.18408072,945.75,944.32,1.58783522]
[1768425734213,0.18408072,945.75,944.34,1.58783522]
[1768425734412,0.18408072,945.75,944.35,1.58783522]
[1768425735808,0.18408072,945.75,944.38,1.58783522]
[1768425736310,0.18408072,945.75,944.37,1.58783522]
[1768425739015,0.18408072,945.75,944.38,1.58783522]
[1768425745624,1.502,945.74,944.38,1.58783522]
[1768425748220,1.502,945.74,944.37,1.58783522]
[1768425748424,1.502,945.74,944.38,1.58783522]
[1768425749321,1.502,945.74,944.37,1.58783522]
[1768425760231,1.502,945.74,944.38,1.58783522]
[1768425768234,1.502,945.74,944.39,1.58783522]
[1768425772646,1.502,945.74,944.4,1.58783522]
[1768425775248,1.502,945.74,944.41,1.58783522]
[1768425777348,1.502,945.74,944.42,1.58783522]
[1768425778351,1.502,945.74,944.43,1.58783522]
[1768425783249,1.502,945.74,944.44,1.58783522]
[1768425785657,0.18408072,945.75,944.44,1.58783522]
[1768425788957,1.42,945.74,944.44,1.58783522]
[1768425808366,1.42,945.74,943.75,2.63765256]
[1768425808367,1.42,945.74,944.43,1.58783522]
[1768425813573,1.42,945.74,944.49,1.58783522]
[1768425813771,1.42,945.74,944.56,1.58783522]
[1768425814068,1.42,945.74,944.57,1.58783522]
[1768425814371,1.42,945.74,944.63,1.58783522]
[1768425815271,1.42,945.74,943.95,2.63765256]
[1768425815272,1.42,945.74,944.61,1.58783522]
[1768425815672,1.42,945.74,944.68,1.58783522]
[1768425815872,1.42,945.74,944.7,1.58783522]
[1768425816372,1.42,945.74,944.68,1.58783522]
[1768425817368,1.42,945.74,944.66,1.58783522]
[1768425818171,1.42,945.74,944.65,1.58783522]
[1768425818375,1.42,945.74,944.64,1.58783522]
[1768425819375,1.42,945.74,944.63,1.58783522]
[1768425820175,1.42,945.74,944.62,1.58783522]
[1768425821172,1.42,945.74,944.61,1.58783522]
[1768425822176,1.42,945.74,944.6,1.58783522]
[1768425824373,1.42,945.74,943.91,2.63765256]
[1768425824374,1.42,945.74,944.59,1.58783522]
[1768425825374,1.42,945.74,944.58,1.58783522]
[1768425827175,1.42,945.74,944.57,1.58783522]
[1768425828475,1.42,945.74,944.56,1.58783522]
[1768425828680,1.42,945.74,944.54,1.58783522]
[1768425833186,1.42,945.74,944.43,1.58783522]
[1768425834186,1.42,945.74,944.42,1.58783522]
[1768425834387,1.42,945.74,943.75,2.63765256]
[1768425834388,1.42,945.74,944.38,1.58783522]
[1768425838188,1.42,945.74,944.39,1.58783522]
[1768425840891,1.42,945.74,944.34,1.58783522]
[1768425841092,4.41952553,945.8,944.34,1.58783522]
[1768425842393,4.41952553,945.8,944.35,1.58783522]
[1768425843092,4.41952553,945.8,944.34,1.58783522]
[1768425843293,4.41952553,945.8,944.35,1.58783522]
[1768425843796,1.449,945.79,944.35,1.58783522]
[1768425845695,1.449,945.79,944.27,1.58783522]
[1768425845901,1.449,945.79,944.24,1.58783522]
[1768425846102,1.449,945.79,944.21,1.58783522]
[1768425846396,1.449,945.79,944.17,1.58783522]
[1768425847402,1.449,945.79,944.16,1.58783522]
[1768425848198,1.449,945.79,944.17,1.58783522]
[1768425848503,1.449,945.79,944.16,1.58783522]
[1768425849004,1.449,945.79,943.48,2.63765256]
[1768425850103,1.449,945.79,943.47,0.18406125]
[1768425852203,1.449,945.79,944.16,1.58020715]
[1768425853502,1.449,945.79,944.15,1.58020715]
[1768425855307,1.449,945.79,944.14,1.58020715]
[1768425858315,1.449,945.79,944.13,1.58020715]
[1768425860216,1.449,945.79,944.12,1.58020715]
[1768425866719,4.41952553,945.8,944.12,1.58020715]
[1768425868321,4.41952553,945.8,944.13,1.58020715]
[1768425868522,0.18403302,946.04,944.13,1.58020715]
[1768425869323,1.256,946.03,944.13,1.58020715]
[1768425869925,1.256,946.03,944.12,1.58020715]
[1768425870228,1.256,946.03,943.47,0.18406125]
[1768425870229,1.256,946.03,944.11,1.58020715]
[1768425870726,1.256,946.03,944.1,1.58020715]
[1768425872029,1.256,946.03,944.01,1.58020715]
[1768425872227,1.256,946.03,944.02,1.58020715]
[1768425872433,1.256,946.03,944.03,1.58020715]
[1768425873032,1.256,946.03,944.06,1.58020715]
[1768425873234,1.256,946.03,944.07,1.58020715]
[1768425875230,1.256,946.03,944.08,1.58020715]
[1768425876136,1.256,946.03,944.09,1.58020715]
[1768425877229,1.256,946.03,944.1,1.58020715]
[1768425878230,1.256,946.03,944.12,1.58020715]
[1768425880234,1.256,946.03,944.13,1.58020715]
[1768425882336,1.256,946.03,944.14,1.58020715]
[1768425883137,1.256,946.03,944.15,1.58020715]
[1768425884138,1.256,946.03,944.16,1.58020715]
[1768425886339,1.256,946.03,944.17,1.58020715]
[1768425887334,1.256,946.03,944.18,1.58020715]
[1768425889438,1.256,946.03,944.2,1.58020715]
[1768425890338,1.256,946.03,944.21,1.58020715]
[1768425902553,1.256,946.03,944.15,1.58020715]
[1768425902754,1.256,946.03,944.1,1.58020715]
[1768425903350,0.18403302,946.04,944.09,1.58020715]
[1768425904955,0.18403302,946.04,944.08,1.58020715]
[1768425906356,0.18403302,946.04,944.07,1.58020715]
[1768425906553,1.374,946.03,944.05,1.58020715]
[1768425906754,1.374,946.03,944.01,1.58020715]
[1768425907559,1.374,946.03,943.94,1.58020715]
[1768425907858,1.374,946.03,943.91,1.58020715]
[1768425908357,1.374,946.03,943.89,1.58020715]
[1768425909352,1.374,946.03,943.47,0.18406125]
[1768425909353,1.374,946.03,943.88,1.58020715]
[1768425910354,1.374,946.03,943.87,1.58020715]
[1768425911254,1.374,946.03,943.86,1.58020715]
[1768425913360,1.374,946.03,943.85,1.58020715]
[1768425913659,41.95529334,946.0,943.85,1.58020715]
[1768425914860,46.467496,946.0,943.85,1.58020715]
[1768425915362,46.467496,946.0,943.84,1.58020715]
[1768425917562,46.467496,946.0,943.83,1.58020715]
[1768425918459,46.467496,946.0,943.81,1.58020715]
[1768425920562,46.467496,946.0,943.8,1.58020715]
[1768425923265,46.467496,946.0,943.78,1.58020715]
[1768425925464,46.467496,946.0,943.77,1.58020715]
[1768425927968,46.467496,946.0,943.7,1.58020715]
[1768425928464,46.467496,946.0,943.69,1.58020715]
[1768425928667,46.467496,946.0,943.68,1.58020715]
[1768425928870,46.467496,946.0,943.63,1.58020715]
[1768425929270,46.467496,946.0,943.62,1.58020715]
[1768425932571,46.467496,946.0,943.61,1.58020715]
[1768425934067,46.467496,946.0,943.6,1.58020715]
[1768425936875,46.467496,946.0,943.58,1.58020715]
[1768425940375,46.467496,946.0,943.59,1.58020715]
[1768425942578,46.467496,946.0,943.6,1.58020715]
[1768425944377,46.467496,946.0,943.61,1.58020715]
[1768425946782,46.467496,946.0,943.62,1.58020715]
[1768425947580,46.467496,946.0,943.63,1.58020715]
[1768425948383,1.213,945.99,943.64,1.58020715]
[1768425949383,1.213,945.99,943.65,1.58020715]
[1768425950081,1.213,945.99,943.64,1.58020715]
[1768425950279,1.213,945.99,943.65,1.58020715]
[1768425951378,1.213,945.99,943.66,1.58020715]
[1768425952385,1.213,945.99,943.67,1.58020715]
[1768425957388,1.213,945.99,943.59,1.58020715]
[1768425957585,2.62467161,945.93,943.59,1.58020715]
[1768425957889,2.62467161,945.93,943.49,1.58020715]
[1768425958084,2.62467161,945.84,943.49,1.58020715]
[1768425958385,2.62467161,945.84,943.5,1.58020715]
[1768425958688,2.62467161,945.84,943.48,1.58020715]
[1768425959485,2.62467161,945.84,943.47,1.58020715]
[1768425959683,2.62467161,945.79,943.42,1.58020715]
[1768425960986,2.62467161,945.78,943.42,1.58020715]
[1768425961186,2.62467161,945.78,943.41,1.58020715]
[1768425961387,2.62467161,945.8,943.41,1.58020715]
[1768425961885,2.62467161,945.79,943.39,1.58020715]
[1768425962090,2.62467161,945.79,943.4,1.58020715]
[1768425962389,2.62467161,945.79,943.39,1.58020715]
[1768425963190,2.62467161,945.79,943.38,1.58020715]
[1768425964287,2.62467161,945.79,943.37,1.58020715]
[1768425964490,2.62467161,945.8,943.37,1.58020715]
[1768425966287,2.62467161,945.8,943.36,1.58020715]
[1768425966487,2.62467161,945.81,943.37,1.58020715]
[1768425967391,2.62467161,945.81,943.36,1.58020715]
[1768425975694,2.62467161,945.81,943.38,1.58020715]
[1768425975894,2.62467161,945.89,943.43,1.58020715]
[1768425976098,2.62467161,945.89,943.45,1.58020715]
[1768425976295,2.62467161,945.89,943.49,1.58020715]
[1768425976495,2.62467161,945.94,943.49,1.58020715]
[1768425978099,2.62467161,945.96,943.54,1.58020715]
[1768425978300,2.62467161,945.96,943.55,1.58020715]
[1768425978496,3.83767161,945.99,943.55,1.58020715]
[1768425978699,3.83767161,945.99,943.56,1.58020715]
[1768425978902,1.213,945.99,943.66,1.58020715]
[1768425982402,1.213,945.99,943.65,1.58020715]
[1768425983709,1.213,945.99,943.66,1.58020715]
[1768425984209,1.213,945.99,943.67,1.58020715]
[1768425984504,1.213,945.99,943.66,1.58020715]
[1768425986810,1.213,945.99,943.67,1.58020715]
[1768425992413,1.213,945.99,943.28,0.18419569]
[1768425992414,1.213,945.99,943.66,1.58020715]
[1768426000322,1.213,945.99,943.65,1.58020715]
[1768426002427,46.467496,946.0,943.65,1.58020715]
[1768426003723,46.467496,946.0,943.74,1.58020715]
[1768426004829,46.467496,946.0,943.91,1.58020715]
[1768426005420,46.467496,946.0,943.9,1.58020715]
[1768426006027,1.385,945.99,943.9,1.58020715]
[1768426006325,1.385,945.99,943.89,1.58020715]
[1768426007429,1.385,945.99,943.88,1.58020715]
[1768426009330,1.385,945.99,943.87,1.58020715]
[1768426011233,1.385,945.99,943.86,1.58020715]
[1768426014236,1.385,945.99,943.87,1.58020715]
[1768426014435,1.385,945.99,943.86,1.58020715]
[1768426014837,0.18410653,945.5,943.86,1.58020715]
[1768426016233,0.18410653,945.5,943.87,1.58020715]
[1768426018338,0.18410653,945.5,943.88,1.58020715]
[1768426019338,0.18410653,945.5,943.89,1.58020715]
[1768426020241,0.18410653,945.5,943.9,1.58020715]
[1768426020640,0.18410653,945.5,943.92,1.58020715]
[1768426022246,0.18410653,945.5,943.93,1.58020715]
[1768426029351,0.18410653,945.5,943.88,1.58020715]
[1768426030257,0.18410653,945.5,943.89,1.58020715]
[1768426033259,0.18410653,945.5,943.9,1.58020715]
[1768426034662,0.18410653,945.5,943.91,1.58020715]
[1768426037260,0.18410653,945.5,943.92,1.58020715]
[1768426039261,0.18410653,945.5,943.93,1.58020715]
[1768426041365,0.18410653,945.5,943.94,1.58020715]
[1768426042366,0.18410653,945.5,943.95,1.58020715]
[1768426044469,0.18410653,945.5,943.96,1.58020715]
[1768426045368,0.18410653,945.5,943.97,1.58020715]
[1768426046370,0.18410653,945.5,943.99,1.58020715]
[1768426047267,0.18410653,945.5,944.0,1.58020715]
[1768426048374,0.18410653,945.5,944.02,1.58020715]
[1768426049170,0.18410653,945.5,944.03,1.58020715]
[1768426049668,1.112,945.49,944.03,1.58020715]
[1768426067987,1.112,945.49,944.03,1.58020715]
[1768426069398,1.112,945.49,944.04,1.58020715]
[1768426073298,1.112,945.49,944.05,1.58020715]
[1768426074300,1.112,945.49,944.06,1.58020715]
[1768426089313,1.112,945.49,944.07,1.58020715]
[1768426093307,1.112,945.49,944.06,1.58020715]
[1768426096419,1.112,945.49,944.1,1.58020715]
[1768426097319,1.112,945.49,944.09,1.58020715]
[1768426097817,0.18410653,945.5,944.1,1.58020715]
[1768426098320,0.18410653,945.5,943.41,2.63367859]
[1768426098321,0.18410653,945.5,944.09,1.58020715]
[1768426101115,1.642,945.49,944.09,1.58020715]
[1768426102123,1.642,945.49,944.11,1.58020715]
[1768426102319,1.642,945.49,944.13,1.58020715]
[1768426102522,1.642,945.49,944.15,1.58020715]
[1768426103419,1.642,945.49,944.14,1.58020715]
[1768426104520,1.642,945.49,944.17,1.58020715]
[1768426104924,1.642,945.49,944.2,1.58020715]
[1768426105419,1.642,945.49,944.19,1.58020715]
[1768426106329,1.642,945.49,944.18,1.58020715]
[1768426107525,1.642,945.49,944.19,1.58020715]
[1768426107720,1.642,945.49,944.33,1.58020715]
[1768426108332,1.642,945.49,944.31,1.58020715]
[1768426109424,1.642,945.49,944.34,1.58020715]
[1768426111427,1.642,945.49,944.33,1.58020715]
[1768426111839,1.642,945.49,944.34,1.58020715]
[1768426112427,1.642,945.49,944.32,1.58020715]
[1768426113432,1.642,945.49,944.38,1.58020715]
[1768426113632,1.642,945.49,944.39,1.58020715]
[1768426113933,1.642,945.49,944.41,1.58020715]
[1768426114334,1.642,945.49,944.39,1.58020715]
[1768426115039,1.642,945.49,944.47,1.58020715]
[1768426115433,1.642,945.49,944.45,1.58020715]
[1768426117436,1.642,945.49,944.43,1.58020715]
[1768426118138,1.642,945.49,944.44,1.58020715]
[1768426118436,1.642,945.49,944.62,1.58020715]
[1768426119234,1.642,945.49,944.58,1.58020715]
[1768426120236,1.642,945.49,944.55,1.58020715]
[1768426121039,1.642,945.49,944.56,1.58020715]
[1768426121239,1.642,945.49,944.55,1.58020715]
[1768426121437,1.642,945.49,944.53,1.58020715]
[1768426122348,1.642,945.49,944.51,1.58020715]
[1768426123246,1.642,945.49,944.49,1.58020715]
[1768426124438,1.642,945.49,943.81,2.63367859]
[1768426124439,1.642,945.49,944.47,1.58020715]
[1768426125342,1.642,945.49,944.46,1.58020715]
[1768426126239,1.642,945.49,944.45,1.58020715]
[1768426127344,1.642,945.49,944.44,1.58020715]
[1768426128346,1.642,945.49,944.43,1.58020715]
[1768426129341,1.642,945.49,944.42,1.58020715]
[1768426130355,1.642,945.49,944.41,1.58020715]
[1768426136455,1.642,945.49,944.38,1.58020715]
[1768426137452,1.642,945.49,944.39,1.58020715]
[1768426138952,1.642,945.49,943.71,2.63367859]
[1768426138953,1.642,945.49,944.42,1.58020715]
[1768426139352,1.642,945.49,944.43,1.58020715]
[1768426141449,1.642,945.49,944.44,1.58020715]
[1768426142251,1.642,945.49,944.45,1.58020715]
[1768426143254,1.642,945.49,944.46,1.58020715]
[1768426143452,1.642,945.49,944.47,1.58020715]
[1768426144356,1.642,945.49,944.48,1.58020715]
[1768426145159,0.18402329,946.26,944.48,1.58020715]
[1768426145358,0.18402329,946.26,944.5,1.58020715]
[1768426146355,0.18402329,946.26,944.52,1.58020715]
[1768426147358,0.18402329,946.26,944.54,1.58020715]
[1768426147962,1.714,946.25,944.54,1.58020715]
[1768426148570,1.714,946.25,944.55,1.58020715]
[1768426149361,1.714,946.25,944.58,1.58020715]
[1768426150259,1.714,946.25,944.6,1.58020715]
[1768426151367,1.714,946.25,944.62,1.58020715]
[1768426152459,1.714,946.25,944.65,1.58020715]
[1768426153258,1.714,946.25,944.66,1.58020715]
[1768426154365,1.714,946.25,944.68,1.58020715]
[1768426154866,1.714,946.25,944.74,1.58020715]
[1768426155360,1.714,946.25,944.76,1.58020715]
[1768426156365,1.714,946.25,944.78,1.58020715]
[1768426157262,1.714,946.25,944.8,1.58020715]
[1768426158267,1.714,946.25,944.83,1.58020715]
[1768426159365,1.714,946.25,944.85,1.58020715]
[1768426160270,1.714,946.25,944.86,1.58020715]
[1768426161268,1.714,946.25,944.88,1.58020715]
[1768426161468,1.714,946.25,944.89,1.58020715]
[1768426162573,1.714,946.25,944.91,1.58020715]
[1768426163384,1.714,946.25,944.92,1.58020715]
[1768426164279,1.714,946.25,944.91,1.58020715]
[1768426164482,1.714,946.25,944.92,1.58020715]
[1768426167078,0.18402329,946.26,944.92,1.58020715]
[1768426167485,0.18402329,946.26,944.93,1.58020715]
[1768426170984,1.144,946.25,944.93,1.58020715]
[1768426172793,1.144,946.25,944.92,1.58020715]
[1768426188309,1.144,946.25,944.93,1.58020715]
[1768426195408,1.144,946.25,944.94,1.58020715]
[1768426196912,1.144,946.25,944.9,1.58020715]
[1768426197410,1.144,946.25,944.91,1.58020715]
[1768426199311,1.144,946.25,944.92,1.58020715]
[1768426201111,1.144,946.25,944.91,1.58020715]
[1768426202213,1.144,946.25,944.9,1.58020715]
[1768426204125,1.144,946.25,944.89,1.58020715]
[1768426208923,1.144,946.25,944.87,1.58020715]
[1768426212026,0.18402329,946.26,944.87,1.58020715]
[1768426212322,0.18402329,946.26,944.81,1.58020715]
[1768426213325,0.18402329,946.26,944.8,1.58020715]
[1768426216027,1.439,946.25,944.8,1.58020715]
[1768426216322,1.439,946.25,944.79,1.58020715]
[1768426219730,1.439,946.25,944.8,1.58020715]
[1768426223531,1.439,946.25,944.81,1.58020715]
[1768426224432,1.439,946.25,944.91,1.58020715]
[1768426224631,1.439,946.25,944.92,1.58020715]
[1768426226332,1.439,946.25,944.91,1.58020715]
[1768426232141,1.439,946.25,944.94,1.58020715]
[1768426234939,1.439,946.25,944.99,1.58020715]
[1768426235135,1.439,946.25,945.0,1.58020715]
[1768426235338,1.439,946.25,945.06,1.58020715]
[1768426236036,1.439,946.25,945.05,1.58020715]
[1768426236244,1.439,946.25,945.1,1.58020715]
[1768426237139,1.439,946.25,945.09,1.58020715]
[1768426238145,1.439,946.25,945.08,1.58020715]
[1768426238346,1.439,946.25,945.07,1.58020715]
[1768426240253,1.439,946.25,945.06,1.58020715]
[1768426241357,1.439,946.25,945.05,1.58020715]
[1768426241858,1.439,946.25,945.11,1.58020715]
[1768426242249,1.439,946.25,945.1,1.58020715]
[1768426243046,0.18392992,946.59,945.09,1.58020715]
[1768426244250,0.18392992,946.59,945.08,1.58020715]
[1768426245145,0.18392992,946.59,945.07,1.58020715]
[1768426246549,0.18392992,946.59,945.09,1.58020715]
[1768426247248,1.656,946.58,945.08,1.58020715]
[1768426248453,1.656,946.58,945.07,1.58020715]
[1768426250060,1.656,946.58,945.06,1.58020715]
[1768426253158,1.656,946.58,945.05,1.58020715]
[1768426254765,1.656,946.58,945.2,1.58020715]
[1768426255166,1.656,946.58,945.19,1.58020715]
[1768426255360,1.656,946.58,945.2,1.58020715]
[1768426256262,1.656,946.58,945.19,1.58020715]
[1768426262366,1.656,946.58,945.18,1.58020715]
[1768426262867,1.656,946.58,945.19,1.58020715]
[1768426263366,1.656,946.58,945.18,1.58020715]
[1768426263862,1.656,946.58,945.19,1.58020715]
[1768426266269,1.656,946.58,945.22,1.58020715]
[1768426266469,1.656,946.58,945.21,1.58020715]
[1768426267164,1.656,946.58,945.23,1.58020715]
[1768426269066,1.656,946.58,945.24,1.58020715]
[1768426270465,1.656,946.58,945.26,1.58020715]
[1768426271970,1.656,946.58,945.27,1.58020715]
[1768426273070,1.656,946.58,945.28,1.58020715]
[1768426275166,1.656,946.58,945.29,1.58020715]
[1768426276265,1.656,946.58,945.3,1.58020715]
[1768426277166,1.656,946.58,945.31,1.58020715]
[1768426278171,1.656,946.58,944.63,2.63367859]
[1768426278172,1.656,946.58,945.32,1.58020715]
[1768426279069,1.656,946.58,945.33,1.58020715]
[1768426280172,1.656,946.58,945.34,1.58020715]
[1768426280974,1.656,946.58,945.38,1.58020715]
[1768426281171,1.656,946.58,945.39,1.58020715]
[1768426281372,1.656,946.58,945.4,1.58020715]
[1768426281576,1.656,946.58,945.45,1.58020715]
[1768426281770,1.656,946.58,945.46,1.58020715]
[1768426282074,1.656,946.58,945.47,1.58020715]
[1768426284076,1.656,946.58,945.61,1.58020715]
[1768426284576,1.656,946.58,945.6,1.58020715]
[1768426285078,1.656,946.58,945.62,1.58020715]
[1768426285275,1.656,946.58,945.64,1.58020715]
[1768426286074,1.656,946.58,945.65,1.58020715]
[1768426287374,1.656,946.58,945.64,1.58020715]
[1768426288376,1.656,946.58,945.57,1.58020715]
[1768426290382,1.656,946.58,945.56,1.58020715]
[1768426291084,0.00966613,947.21,945.56,1.58020715]
[1768426291282,43.5479458,947.75,945.57,1.58020715]
[1768426291478,43.5479458,947.75,945.56,1.58020715]
[1768426291479,0.18377208,947.21,945.56,1.58020715]
[1768426292079,0.18377208,947.21,945.57,1.58020715]
[1768426292384,0.18377208,947.21,945.56,1.58020715]
[1768426293078,0.18377208,947.21,945.57,1.58020715]
[1768426293279,0.18377208,947.21,945.56,1.58020715]
[1768426294282,0.18377208,947.21,945.57,1.58020715]
[1768426294482,0.18377208,947.21,945.56,1.58020715]
[1768426295179,0.18377208,947.21,945.57,1.58020715]
[1768426295382,0.18377208,947.21,945.56,1.58020715]
[1768426296078,0.18377208,947.21,945.57,1.58020715]
[1768426296779,0.18377208,947.21,945.53,1.58020715]
[1768426296978,0.18377208,947.21,945.52,1.58020715]
[1768426297282,0.18377208,947.21,945.53,1.58020715]
[1768426299082,0.18377208,947.21,945.54,1.58020715]
[1768426301085,0.18377208,947.21,945.55,1.58020715]
[1768426305483,0.18377208,947.21,945.56,1.58020715]
[1768426307385,0.18377208,947.21,945.57,1.58020715]
[1768426309489,0.18377208,947.21,945.58,1.58020715]
[1768426311387,0.18377208,947.21,945.59,1.58020715]
[1768426313192,0.18377208,947.21,945.6,1.58020715]
[1768426314392,0.18377208,947.21,945.61,1.58020715]
[1768426316292,0.18377208,947.21,945.62,1.58020715]
[1768426318292,0.18377208,947.21,945.63,1.58020715]
[1768426319394,0.18377208,947.21,945.64,1.58020715]
[1768426321497,0.18377208,947.21,945.65,1.58020715]
[1768426321998,0.18377208,947.21,945.72,1.58020715]
[1768426322391,0.18377208,947.21,945.73,1.58020715]
[1768426323298,0.18377208,947.21,945.74,1.58020715]
[1768426323799,0.18377208,947.21,945.78,1.58020715]
[1768426324600,0.18377208,947.21,945.79,1.58020715]
[1768426325296,0.18377208,947.21,945.78,1.58020715]
[1768426326298,0.18377208,947.21,945.79,1.58020715]
[1768426328401,0.18377208,947.21,945.11,2.63367859]
[1768426328402,0.18377208,947.21,945.8,1.58020715]
[1768426337212,0.18377208,947.21,945.79,1.58020715]
[1768426337712,0.18377208,947.21,945.8,1.58020715]
[1768426339314,0.18377208,947.21,945.79,1.58020715]
[1768426343612,1.306,947.2,945.79,1.58020715]
[1768426350318,1.306,947.2,945.76,1.58020715]
[1768426350518,1.306,947.2,945.11,2.63367859]
[1768426350519,1.306,947.2,945.75,1.58020715]
[1768426350822,1.306,947.2,945.74,1.58020715]
[1768426351321,1.306,947.2,945.75,1.58020715]
[1768426353623,1.306,947.2,945.69,1.58020715]
[1768426355025,1.306,947.2,945.01,2.63367859]
[1768426355026,1.306,947.2,945.64,1.58020715]
[1768426355920,1.306,947.2,945.61,1.58020715]
[1768426356422,1.306,947.2,945.6,1.58020715]
[1768426356626,1.306,947.2,945.54,1.58020715]
[1768426357322,1.306,947.2,945.52,1.58020715]
[1768426359326,1.306,947.2,945.51,1.58020715]
[1768426360325,1.306,947.2,945.5,1.58020715]
[1768426361229,1.306,947.2,945.49,1.58020715]
[1768426363226,1.306,947.2,945.48,1.58020715]
[1768426365333,1.306,947.2,945.47,1.58020715]
[1768426367235,1.306,947.2,945.46,1.58020715]
[1768426371034,1.306,947.2,945.45,1.58020715]
[1768426381757,0.18377208,947.21,945.45,1.58020715]
[1768426384259,0.18377208,947.21,945.46,1.58020715]
[1768426385860,1.396,947.2,945.46,1.58020715]
[1768426388061,1.396,947.2,945.47,1.58020715]
[1768426390161,1.396,947.2,945.48,1.58020715]
[1768426391264,1.396,947.2,945.49,1.58020715]
[1768426393167,1.396,947.2,945.5,1.58020715]
[1768426394166,1.396,947.2,945.51,1.58020715]